[Event "Titled Tuesday Blitz August 09 Late 2022"]
[White "Romanchuk, Viktor"]
[Black "Tanenbaum, Zachary"]
[WhiteFideId "14109271"]
[BlackFideId "2060850"]
[WhiteElo "2242"]
[BlackElo "2175"]
[Result "1-0"]
[Round "05"]
[TimeControl "180+1"]
[Date "2022.08.09"]
[WhiteClock "0:00:40"]
[BlackClock "0:00:02"]

1. d4 {[%clk 0:03:00]}  d5 {[%clk 0:03:00]} 2. c4 {[%clk 0:03:00]}  dxc4 {[%clk 0:03:01]} 3. e3 {[%clk 0:02:59]}  e5 {[%clk 0:03:01]} 4. Bxc4 {[%clk 0:03:00]}  exd4 {[%clk 0:03:01]} 5. exd4 {[%clk 0:02:59]}  Bd6 {[%clk 0:03:02]} 6. Nf3 {[%clk 0:02:59]}  Nf6 {[%clk 0:03:02]} 7. O-O {[%clk 0:02:59]}  O-O {[%clk 0:03:03]} 8. Nc3 {[%clk 0:03:00]}  Nc6 {[%clk 0:03:03]} 9. h3 {[%clk 0:03:00]}  h6 {[%clk 0:03:02]} 10. Re1 {[%clk 0:02:57]}  Re8 {[%clk 0:02:59]} 11. Be3 {[%clk 0:02:56]}  Na5 {[%clk 0:02:51]} 12. Bd3 {[%clk 0:02:53]}  Be6 {[%clk 0:02:51]} 13. Ne5 {[%clk 0:02:49]}  Nc6 {[%clk 0:02:32]} 14. f4 {[%clk 0:02:38]}  Nd5 {[%clk 0:02:24]} 15. Nxd5 {[%clk 0:02:31]}  Bxd5 {[%clk 0:02:25]} 16. Qh5 {[%clk 0:02:26]}  Ne7 {[%clk 0:01:02]} 17. f5 {[%clk 0:02:18]}  Bxe5 {[%clk 0:00:52]} 18. dxe5 {[%clk 0:02:19]}  Bf3 {[%clk 0:00:52]} 19. Qxf3 {[%clk 0:01:44]}  Qxd3 {[%clk 0:00:52]} 20. f6 {[%clk 0:01:40]}  Ng6 {[%clk 0:00:51]} 21. fxg7 {[%clk 0:01:40]}  Rxe5 {[%clk 0:00:49]} 22. Bxh6 {[%clk 0:01:37]}  Qxf3 {[%clk 0:00:49]} 23. gxf3 {[%clk 0:01:38]}  Rh5 {[%clk 0:00:49]} 24. Bd2 {[%clk 0:01:31]}  Kxg7 {[%clk 0:00:26]} 25. Rad1 {[%clk 0:01:18]}  Rxh3 {[%clk 0:00:22]} 26. Kg2 {[%clk 0:01:18]}  Rh5 {[%clk 0:00:15]} 27. Bc3+ {[%clk 0:01:17]}  Kg8 {[%clk 0:00:16]} 28. Rd7 {[%clk 0:01:13]}  Nf4+ {[%clk 0:00:16]} 29. Kg3 {[%clk 0:01:12]}  Ne6 {[%clk 0:00:17]} 30. f4 {[%clk 0:01:10]}  Rf5 {[%clk 0:00:12]} 31. Rf1 {[%clk 0:00:59]}  Kf8 {[%clk 0:00:12]} 32. Kg4 {[%clk 0:00:59]}  Ke8 {[%clk 0:00:07]} 33. Rxc7 {[%clk 0:00:56]}  Nxc7 {[%clk 0:00:07]} 34. Kxf5 {[%clk 0:00:55]}  Ne6 {[%clk 0:00:08]} 35. Kf6 {[%clk 0:00:54]}  Rd8 {[%clk 0:00:08]} 36. f5 {[%clk 0:00:53]}  Nc7 {[%clk 0:00:08]} 37. Re1+ {[%clk 0:00:49]}  Kd7 {[%clk 0:00:06]} 38. Re7+ {[%clk 0:00:48]}  Kc6 {[%clk 0:00:06]} 39. Kxf7 {[%clk 0:00:45]}  Nd5 {[%clk 0:00:06]} 40. Re6+ {[%clk 0:00:45]}  Kd7 {[%clk 0:00:07]} 41. Re1 {[%clk 0:00:42]}  Kd6 {[%clk 0:00:07]} 42. Rd1 {[%clk 0:00:41]}  Rd7+ {[%clk 0:00:07]} 43. Kg6 {[%clk 0:00:40]}  Kc6 {[%clk 0:00:08]} 44. Kg5 {[%clk 0:00:38]}  Nxc3 {[%clk 0:00:07]} 45. Rxd7 {[%clk 0:00:38]}  Kxd7 {[%clk 0:00:04]} 46. bxc3 {[%clk 0:00:39]}  Ke8 {[%clk 0:00:04]} 47. Kg6 {[%clk 0:00:39]}  Kf8 {[%clk 0:00:04]} 48. Kf6 {[%clk 0:00:40]}  b6 {[%clk 0:00:03]} 49. c4 {[%clk 0:00:39]}  a6 {[%clk 0:00:03]} 50. a4 {[%clk 0:00:40]}  a5 {[%clk 0:00:03]} 51. Ke6 {[%clk 0:00:40]}  Ke8 {[%clk 0:00:03]} 52. f6 {[%clk 0:00:39]}  Kf8 {[%clk 0:00:02]} 53. f7 {[%clk 0:00:40]} 1-0


[Site "https://www.chess.com"]

[Event "Titled Tuesday Blitz August 09 Late 2022"]
[White "Shimanov, Aleksandr"]
[Black "Bilych, Olexiy"]
[WhiteFideId "4198603"]
[BlackFideId "14156504"]
[WhiteElo "2605"]
[BlackElo "2157"]
[Result "1-0"]
[Round "05"]
[TimeControl "180+1"]
[Date "2022.08.09"]
[WhiteClock "0:00:52"]
[BlackClock "0:00:04"]

1. e4 {[%clk 0:03:00]}  d5 {[%clk 0:02:55]} 2. exd5 {[%clk 0:03:00]}  Qxd5 {[%clk 0:02:56]} 3. Nf3 {[%clk 0:03:00]}  Bg4 {[%clk 0:02:52]} 4. Be2 {[%clk 0:03:00]}  Nc6 {[%clk 0:02:46]} 5. h3 {[%clk 0:03:00]}  Bxf3 {[%clk 0:02:43]} 6. Bxf3 {[%clk 0:03:01]}  Qe6+ {[%clk 0:02:44]} 7. Qe2 {[%clk 0:03:00]}  Qxe2+ {[%clk 0:02:41]} 8. Bxe2 {[%clk 0:03:00]}  O-O-O {[%clk 0:02:42]} 9. c3 {[%clk 0:02:53]}  e5 {[%clk 0:02:40]} 10. d3 {[%clk 0:02:53]}  Nge7 {[%clk 0:02:28]} 11. O-O {[%clk 0:02:51]}  g6 {[%clk 0:02:26]} 12. Nd2 {[%clk 0:02:47]}  Bg7 {[%clk 0:02:25]} 13. a4 {[%clk 0:02:44]}  Nd5 {[%clk 0:02:04]} 14. Nc4 {[%clk 0:02:42]}  h6 {[%clk 0:02:00]} 15. a5 {[%clk 0:02:39]}  a6 {[%clk 0:01:57]} 16. g3 {[%clk 0:02:35]}  Rhe8 {[%clk 0:01:57]} 17. Bf3 {[%clk 0:02:32]}  f5 {[%clk 0:01:56]} 18. Rd1 {[%clk 0:02:30]}  Rd7 {[%clk 0:01:33]} 19. Kf1 {[%clk 0:02:22]}  Kb8 {[%clk 0:01:30]} 20. Ke2 {[%clk 0:02:18]}  Red8 {[%clk 0:01:26]} 21. Bd2 {[%clk 0:02:10]}  Ndb4 {[%clk 0:01:03]} 22. Bxc6 {[%clk 0:01:56]}  Nxc6 {[%clk 0:01:02]} 23. Be3 {[%clk 0:01:55]}  Rd5 {[%clk 0:00:54]} 24. f3 {[%clk 0:01:54]}  Re8 {[%clk 0:00:50]} 25. Bf2 {[%clk 0:01:49]}  Rdd8 {[%clk 0:00:48]} 26. Rac1 {[%clk 0:01:44]}  Kc8 {[%clk 0:00:48]} 27. b4 {[%clk 0:01:43]}  Ne7 {[%clk 0:00:37]} 28. Nd2 {[%clk 0:01:12]}  Nd5 {[%clk 0:00:36]} 29. Nb3 {[%clk 0:01:12]}  e4 {[%clk 0:00:20]} 30. d4 {[%clk 0:01:12]}  exf3+ {[%clk 0:00:19]} 31. Kxf3 {[%clk 0:01:13]}  Nf6 {[%clk 0:00:15]} 32. Nc5 {[%clk 0:01:06]}  Ne4 {[%clk 0:00:15]} 33. Nxe4 {[%clk 0:01:06]}  Rxe4 {[%clk 0:00:14]} 34. Re1 {[%clk 0:01:06]}  Rde8 {[%clk 0:00:14]} 35. Rxe4 {[%clk 0:01:06]}  Rxe4 {[%clk 0:00:14]} 36. g4 {[%clk 0:01:07]}  Kd7 {[%clk 0:00:13]} 37. gxf5 {[%clk 0:01:07]}  gxf5 {[%clk 0:00:14]} 38. Rg1 {[%clk 0:01:08]}  Bf6 {[%clk 0:00:08]} 39. Rg6 {[%clk 0:01:06]}  Bg5 {[%clk 0:00:08]} 40. d5 {[%clk 0:01:02]}  Rf4+ {[%clk 0:00:07]} 41. Ke2 {[%clk 0:01:03]}  Re4+ {[%clk 0:00:07]} 42. Kd3 {[%clk 0:01:03]}  Re7 {[%clk 0:00:05]} 43. Bc5 {[%clk 0:01:00]}  Rf7 {[%clk 0:00:04]} 44. Ke2 {[%clk 0:01:00]}  Be7 {[%clk 0:00:03]} 45. Bd4 {[%clk 0:01:00]}  Bg5 {[%clk 0:00:02]} 46. Kf3 {[%clk 0:00:59]}  Rf8 {[%clk 0:00:02]} 47. Rg7+ {[%clk 0:00:58]}  Kc8 {[%clk 0:00:02]} 48. Be5 {[%clk 0:00:58]}  Bd8 {[%clk 0:00:02]} 49. c4 {[%clk 0:00:57]}  Re8 {[%clk 0:00:02]} 50. Kf4 {[%clk 0:00:56]}  Rf8 {[%clk 0:00:03]} 51. b5 {[%clk 0:00:54]}  Bg5+ {[%clk 0:00:03]} 52. Kf3 {[%clk 0:00:54]}  axb5 {[%clk 0:00:04]} 53. cxb5 {[%clk 0:00:54]}  Bd8 {[%clk 0:00:05]} 54. a6 {[%clk 0:00:51]}  bxa6 {[%clk 0:00:05]} 55. bxa6 {[%clk 0:00:52]}  Kb8 {[%clk 0:00:06]} 56. d6 {[%clk 0:00:52]}  Ka7 {[%clk 0:00:04]} 57. dxc7 {[%clk 0:00:52]}  Kxa6 {[%clk 0:00:04]} 58. c8=Q+ {[%clk 0:00:52]} 1-0


[Site "https://www.chess.com"]

[Event "Titled Tuesday Blitz August 09 Late 2022"]
[White "Sokolovsky, Yahli"]
[Black "Amburgy, Ryan"]
[WhiteFideId "2820242"]
[BlackFideId "30924820"]
[WhiteElo "1867"]
[BlackElo "2066"]
[Result "0-1"]
[Round "05"]
[TimeControl "180+1"]
[Date "2022.08.09"]
[WhiteClock "0:00:02"]
[BlackClock "0:00:13"]

1. b3 {[%clk 0:03:00]}  d5 {[%clk 0:02:59]} 2. Bb2 {[%clk 0:03:01]}  Bf5 {[%clk 0:02:59]} 3. e3 {[%clk 0:03:01]}  e6 {[%clk 0:02:59]} 4. Nf3 {[%clk 0:03:01]}  Nf6 {[%clk 0:02:59]} 5. d4 {[%clk 0:03:02]}  Be7 {[%clk 0:02:59]} 6. Bd3 {[%clk 0:03:02]}  Bg6 {[%clk 0:02:59]} 7. O-O {[%clk 0:03:02]}  a5 {[%clk 0:02:57]} 8. Ne5 {[%clk 0:03:00]}  Nbd7 {[%clk 0:02:57]} 9. f4 {[%clk 0:02:58]}  a4 {[%clk 0:02:54]} 10. Nd2 {[%clk 0:02:42]}  c6 {[%clk 0:02:32]} 11. g4 {[%clk 0:02:34]}  Bxd3 {[%clk 0:02:07]} 12. cxd3 {[%clk 0:02:32]}  Nxe5 {[%clk 0:02:01]} 13. dxe5 {[%clk 0:02:05]}  Nd7 {[%clk 0:02:01]} 14. f5 {[%clk 0:02:05]}  Bg5 {[%clk 0:01:58]} 15. fxe6 {[%clk 0:01:52]}  fxe6 {[%clk 0:01:58]} 16. Qe2 {[%clk 0:01:51]}  Qe7 {[%clk 0:01:19]} 17. Kh1 {[%clk 0:01:44]}  Rf8 {[%clk 0:01:07]} 18. Nf3 {[%clk 0:01:16]}  Rf7 {[%clk 0:00:39]} 19. Qf2 {[%clk 0:00:58]}  Nc5 {[%clk 0:00:29]} 20. Qe2 {[%clk 0:00:30]}  a3 {[%clk 0:00:25]} 21. Bd4 {[%clk 0:00:29]}  h6 {[%clk 0:00:23]} 22. b4 {[%clk 0:00:21]}  Nd7 {[%clk 0:00:22]} 23. Rab1 {[%clk 0:00:21]}  Kf8 {[%clk 0:00:20]} 24. Qf2 {[%clk 0:00:20]}  Kg8 {[%clk 0:00:20]} 25. h4 {[%clk 0:00:21]}  Rxf3 {[%clk 0:00:17]} 26. Qxf3 {[%clk 0:00:21]}  Bxh4 {[%clk 0:00:17]} 27. Kg2 {[%clk 0:00:17]}  Rf8 {[%clk 0:00:17]} 28. Qe2 {[%clk 0:00:18]}  Bg5 {[%clk 0:00:16]} 29. Rxf8+ {[%clk 0:00:17]}  Nxf8 {[%clk 0:00:17]} 30. Bc5 {[%clk 0:00:18]}  Qe8 {[%clk 0:00:16]} 31. Bxf8 {[%clk 0:00:17]}  Qxf8 {[%clk 0:00:16]} 32. b5 {[%clk 0:00:17]}  Qc5 {[%clk 0:00:16]} 33. bxc6 {[%clk 0:00:17]}  bxc6 {[%clk 0:00:17]} 34. d4 {[%clk 0:00:12]}  Qc3 {[%clk 0:00:12]} 35. Rb3 {[%clk 0:00:13]}  Qc1 {[%clk 0:00:13]} 36. Rb8+ {[%clk 0:00:10]}  Kf7 {[%clk 0:00:09]} 37. Rb3 {[%clk 0:00:04]}  Kg8 {[%clk 0:00:03]} 38. Rxa3 {[%clk 0:00:05]}  Qxa3 {[%clk 0:00:03]} 39. Qc2 {[%clk 0:00:04]}  Qxe3 {[%clk 0:00:04]} 40. Qxc6 {[%clk 0:00:05]}  Qe4+ {[%clk 0:00:04]} 41. Kf1 {[%clk 0:00:04]}  Qf4+ {[%clk 0:00:04]} 42. Ke1 {[%clk 0:00:04]}  Qd2+ {[%clk 0:00:05]} 43. Kf1 {[%clk 0:00:04]}  Kf7 {[%clk 0:00:05]} 44. Qd7+ {[%clk 0:00:04]}  Be7 {[%clk 0:00:05]} 45. a4 {[%clk 0:00:03]}  Qxd4 {[%clk 0:00:06]} 46. g5 {[%clk 0:00:04]}  Qf4+ {[%clk 0:00:06]} 47. Ke2 {[%clk 0:00:04]}  hxg5 {[%clk 0:00:07]} 48. a5 {[%clk 0:00:04]}  Qxe5+ {[%clk 0:00:07]} 49. Kf1 {[%clk 0:00:04]}  Qf4+ {[%clk 0:00:08]} 50. Kg2 {[%clk 0:00:04]}  Qe4+ {[%clk 0:00:08]} 51. Kf1 {[%clk 0:00:04]}  g4 {[%clk 0:00:09]} 52. a6 {[%clk 0:00:04]}  g3 {[%clk 0:00:10]} 53. a7 {[%clk 0:00:04]}  Qf3+ {[%clk 0:00:10]} 54. Ke1 {[%clk 0:00:04]}  Qf2+ {[%clk 0:00:11]} 55. Kd1 {[%clk 0:00:05]}  g2 {[%clk 0:00:12]} 56. Qe8+ {[%clk 0:00:01]}  Kxe8 {[%clk 0:00:13]} 57. a8=Q+ {[%clk 0:00:02]}  Kf7 {[%clk 0:00:13]} 0-1


[Site "https://www.chess.com"]

[Event "Titled Tuesday Blitz August 09 Late 2022"]
[White "Souleidis, Georgios"]
[Black "Zhigalko, Sergei"]
[WhiteFideId "4206827"]
[BlackFideId "13502956"]
[WhiteElo "2401"]
[BlackElo "2662"]
[Result "0-1"]
[Round "05"]
[TimeControl "180+1"]
[Date "2022.08.09"]
[WhiteClock "0:00:01"]
[BlackClock "0:00:28"]

1. e4 {[%clk 0:03:00]}  c5 {[%clk 0:02:59]} 2. Be2 {[%clk 0:03:00]}  Nc6 {[%clk 0:02:58]} 3. d3 {[%clk 0:03:01]}  g6 {[%clk 0:02:58]} 4. f4 {[%clk 0:03:01]}  Bg7 {[%clk 0:02:59]} 5. Nf3 {[%clk 0:03:01]}  e6 {[%clk 0:02:56]} 6. O-O {[%clk 0:03:01]}  Nge7 {[%clk 0:02:56]} 7. c3 {[%clk 0:03:01]}  d5 {[%clk 0:02:53]} 8. Na3 {[%clk 0:03:01]}  O-O {[%clk 0:02:53]} 9. Nc2 {[%clk 0:02:57]}  b6 {[%clk 0:02:45]} 10. e5 {[%clk 0:02:57]}  d4 {[%clk 0:02:44]} 11. c4 {[%clk 0:02:48]}  f6 {[%clk 0:02:27]} 12. exf6 {[%clk 0:02:47]}  Rxf6 {[%clk 0:02:24]} 13. Bd2 {[%clk 0:02:44]}  a5 {[%clk 0:02:23]} 14. b3 {[%clk 0:02:36]}  Nf5 {[%clk 0:02:16]} 15. a3 {[%clk 0:02:30]}  Bb7 {[%clk 0:02:10]} 16. Rb1 {[%clk 0:02:04]}  Qc7 {[%clk 0:01:55]} 17. Ng5 {[%clk 0:01:56]}  Rd8 {[%clk 0:01:41]} 18. Ne4 {[%clk 0:01:44]}  Rff8 {[%clk 0:01:41]} 19. g4 {[%clk 0:01:23]}  Ne3 {[%clk 0:01:40]} 20. Nxe3 {[%clk 0:01:23]}  dxe3 {[%clk 0:01:41]} 21. Bxe3 {[%clk 0:01:24]}  Nd4 {[%clk 0:01:40]} 22. Ng3 {[%clk 0:00:09]}  Qc6 {[%clk 0:01:28]} 23. Ne4 {[%clk 0:00:09]}  Rd7 {[%clk 0:01:17]} 24. Rf2 {[%clk 0:00:07]}  Nxe2+ {[%clk 0:01:13]} 25. Qxe2 {[%clk 0:00:07]}  Rfd8 {[%clk 0:01:13]} 26. Rd1 {[%clk 0:00:05]}  h6 {[%clk 0:00:55]} 27. Rff1 {[%clk 0:00:05]}  Kh7 {[%clk 0:00:52]} 28. h3 {[%clk 0:00:05]}  a4 {[%clk 0:00:34]} 29. bxa4 {[%clk 0:00:05]}  Qxa4 {[%clk 0:00:34]} 30. f5 {[%clk 0:00:03]}  Bxe4 {[%clk 0:00:27]} 31. fxe6 {[%clk 0:00:01]}  Rxd3 {[%clk 0:00:27]} 32. Rxd3 {[%clk 0:00:01]}  Bxd3 {[%clk 0:00:28]} 0-1


[Site "https://www.chess.com"]

[Event "Titled Tuesday Blitz August 09 Late 2022"]
[White "Wan, Joseph"]
[Black "Kevlishvili, Robby"]
[WhiteFideId "2069890"]
[BlackFideId "1040634"]
[WhiteElo "2198"]
[BlackElo "2585"]
[Result "0-1"]
[Round "05"]
[TimeControl "180+1"]
[Date "2022.08.09"]
[WhiteClock "0:00:25"]
[BlackClock "0:00:23"]

1. d4 {[%clk 0:02:50]}  d5 {[%clk 0:02:58]} 2. Bf4 {[%clk 0:02:49]}  Nf6 {[%clk 0:02:57]} 3. e3 {[%clk 0:02:50]}  c5 {[%clk 0:02:57]} 4. Nf3 {[%clk 0:02:49]}  Nc6 {[%clk 0:02:58]} 5. Nbd2 {[%clk 0:02:49]}  cxd4 {[%clk 0:02:57]} 6. exd4 {[%clk 0:02:49]}  a6 {[%clk 0:02:56]} 7. c3 {[%clk 0:02:48]}  Bf5 {[%clk 0:02:55]} 8. Qb3 {[%clk 0:02:42]}  Na5 {[%clk 0:02:55]} 9. Qd1 {[%clk 0:02:42]}  Rc8 {[%clk 0:02:54]} 10. Be2 {[%clk 0:02:41]}  e6 {[%clk 0:02:52]} 11. Ne5 {[%clk 0:02:41]}  Be7 {[%clk 0:02:49]} 12. O-O {[%clk 0:02:41]}  O-O {[%clk 0:02:49]} 13. Re1 {[%clk 0:02:42]}  h6 {[%clk 0:02:48]} 14. Bd3 {[%clk 0:02:41]}  Bxd3 {[%clk 0:02:44]} 15. Nxd3 {[%clk 0:02:42]}  Nc4 {[%clk 0:02:41]} 16. Nf3 {[%clk 0:02:36]}  Ne4 {[%clk 0:02:38]} 17. Nfe5 {[%clk 0:02:32]}  Bd6 {[%clk 0:02:26]} 18. f3 {[%clk 0:02:27]}  Bxe5 {[%clk 0:02:25]} 19. Bxe5 {[%clk 0:02:25]}  Ned6 {[%clk 0:02:23]} 20. Bg3 {[%clk 0:02:23]}  Nf5 {[%clk 0:02:22]} 21. Qe2 {[%clk 0:02:19]}  Qb6 {[%clk 0:02:19]} 22. Rab1 {[%clk 0:02:15]}  Rfe8 {[%clk 0:02:13]} 23. Ne5 {[%clk 0:02:10]}  Nxe5 {[%clk 0:02:04]} 24. Bxe5 {[%clk 0:02:09]}  Qc6 {[%clk 0:02:00]} 25. Qd3 {[%clk 0:02:04]}  b5 {[%clk 0:01:57]} 26. a3 {[%clk 0:02:01]}  Qc4 {[%clk 0:01:54]} 27. Qd2 {[%clk 0:02:00]}  a5 {[%clk 0:01:51]} 28. g4 {[%clk 0:01:59]}  Ne7 {[%clk 0:01:51]} 29. h4 {[%clk 0:01:57]}  Nc6 {[%clk 0:01:45]} 30. g5 {[%clk 0:01:53]}  h5 {[%clk 0:01:38]} 31. Bd6 {[%clk 0:01:52]}  Qb3 {[%clk 0:01:30]} 32. f4 {[%clk 0:01:42]}  g6 {[%clk 0:01:22]} 33. Re3 {[%clk 0:01:34]}  Rcd8 {[%clk 0:01:16]} 34. Bc5 {[%clk 0:01:33]}  Ne7 {[%clk 0:01:15]} 35. Bxe7 {[%clk 0:01:14]}  Rxe7 {[%clk 0:01:15]} 36. Rf1 {[%clk 0:01:12]}  Rc7 {[%clk 0:01:11]} 37. Qe2 {[%clk 0:01:11]}  Qc4 {[%clk 0:01:08]} 38. Qf2 {[%clk 0:01:01]}  b4 {[%clk 0:01:06]} 39. axb4 {[%clk 0:01:01]}  axb4 {[%clk 0:01:06]} 40. Rfe1 {[%clk 0:01:02]}  Qa6 {[%clk 0:01:02]} 41. f5 {[%clk 0:00:56]}  exf5 {[%clk 0:00:55]} 42. Re8+ {[%clk 0:00:56]}  Rxe8 {[%clk 0:00:52]} 43. Rxe8+ {[%clk 0:00:57]}  Kh7 {[%clk 0:00:46]} 44. Qe3 {[%clk 0:00:57]}  Qa1+ {[%clk 0:00:43]} 45. Kg2 {[%clk 0:00:37]}  Qxb2+ {[%clk 0:00:43]} 46. Kg1 {[%clk 0:00:33]}  Rxc3 {[%clk 0:00:23]} 47. Rh8+ {[%clk 0:00:27]}  Kxh8 {[%clk 0:00:23]} 48. Qe8+ {[%clk 0:00:27]}  Kg7 {[%clk 0:00:23]} 49. Qe5+ {[%clk 0:00:26]}  Kh7 {[%clk 0:00:23]} 50. Qh8+ {[%clk 0:00:25]}  Kxh8 {[%clk 0:00:23]} 0-1


[Site "https://www.chess.com"]

[Event "Titled Tuesday Blitz August 09 Late 2022"]
[White "Alekseenko, Kirill"]
[Black "Kosteniuk, Alexandra"]
[WhiteFideId "4135539"]
[BlackFideId "4128125"]
[WhiteElo "2682"]
[BlackElo "2469"]
[Result "1-0"]
[Round "06"]
[TimeControl "180+1"]
[Date "2022.08.09"]
[WhiteClock "0:00:17"]
[BlackClock "0:00:08"]

1. e4 {[%clk 0:03:00]}  e5 {[%clk 0:02:59]} 2. Nf3 {[%clk 0:03:00]}  Nc6 {[%clk 0:02:59]} 3. Bc4 {[%clk 0:03:00]}  Bc5 {[%clk 0:02:59]} 4. d3 {[%clk 0:03:00]}  Nf6 {[%clk 0:02:59]} 5. Nc3 {[%clk 0:03:00]}  a6 {[%clk 0:02:56]} 6. a4 {[%clk 0:02:56]}  h6 {[%clk 0:02:50]} 7. h3 {[%clk 0:02:56]}  d6 {[%clk 0:02:45]} 8. Be3 {[%clk 0:02:56]}  Be6 {[%clk 0:02:40]} 9. Nd2 {[%clk 0:02:56]}  Qe7 {[%clk 0:02:33]} 10. O-O {[%clk 0:02:54]}  Nd4 {[%clk 0:02:25]} 11. a5 {[%clk 0:02:39]}  Ba7 {[%clk 0:02:17]} 12. Ne2 {[%clk 0:02:37]}  O-O {[%clk 0:02:00]} 13. Bxd4 {[%clk 0:02:34]}  exd4 {[%clk 0:02:00]} 14. Bxe6 {[%clk 0:02:30]}  fxe6 {[%clk 0:01:59]} 15. f4 {[%clk 0:02:30]}  Nd7 {[%clk 0:01:39]} 16. Kh2 {[%clk 0:02:26]}  Rf7 {[%clk 0:01:39]} 17. Qe1 {[%clk 0:02:25]}  Raf8 {[%clk 0:01:38]} 18. Qg3 {[%clk 0:02:25]}  Kh8 {[%clk 0:01:35]} 19. Rf3 {[%clk 0:02:22]}  c5 {[%clk 0:01:29]} 20. Raf1 {[%clk 0:02:20]}  Bb8 {[%clk 0:01:29]} 21. Kh1 {[%clk 0:02:13]}  Bc7 {[%clk 0:01:28]} 22. Nb3 {[%clk 0:02:05]}  d5 {[%clk 0:01:23]} 23. e5 {[%clk 0:02:04]}  Nb8 {[%clk 0:01:13]} 24. R3f2 {[%clk 0:01:58]}  Nc6 {[%clk 0:01:13]} 25. Nd2 {[%clk 0:01:59]}  Nb4 {[%clk 0:01:08]} 26. Nf3 {[%clk 0:01:58]}  Bd8 {[%clk 0:01:03]} 27. Rc1 {[%clk 0:01:44]}  Rf5 {[%clk 0:01:02]} 28. Qh2 {[%clk 0:01:40]}  Kh7 {[%clk 0:00:59]} 29. g4 {[%clk 0:01:40]}  R5f7 {[%clk 0:00:59]} 30. Qg3 {[%clk 0:01:38]}  Nc6 {[%clk 0:00:58]} 31. g5 {[%clk 0:01:34]}  g6 {[%clk 0:00:51]} 32. gxh6 {[%clk 0:01:33]}  Rf5 {[%clk 0:00:46]} 33. Rg1 {[%clk 0:01:29]}  Rg8 {[%clk 0:00:44]} 34. Ng5+ {[%clk 0:01:26]}  Kxh6 {[%clk 0:00:43]} 35. Qh4+ {[%clk 0:01:19]}  Kg7 {[%clk 0:00:44]} 36. Ng3 {[%clk 0:01:20]}  Rh8 {[%clk 0:00:42]} 37. Nxf5+ {[%clk 0:01:16]}  exf5 {[%clk 0:00:43]} 38. Qg3 {[%clk 0:01:14]}  Rh6 {[%clk 0:00:43]} 39. Nf3 {[%clk 0:01:10]}  Qe6 {[%clk 0:00:38]} 40. Rfg2 {[%clk 0:01:09]}  Qg8 {[%clk 0:00:32]} 41. h4 {[%clk 0:01:07]}  Qh7 {[%clk 0:00:30]} 42. Rh2 {[%clk 0:01:05]}  Rh5 {[%clk 0:00:22]} 43. e6 {[%clk 0:00:59]}  Be7 {[%clk 0:00:22]} 44. Ng5 {[%clk 0:00:58]}  Qh6 {[%clk 0:00:20]} 45. Rgg2 {[%clk 0:00:51]}  Nxa5 {[%clk 0:00:20]} 46. Qf3 {[%clk 0:00:51]}  Nc6 {[%clk 0:00:19]} 47. Qxd5 {[%clk 0:00:50]}  Rxh4 {[%clk 0:00:19]} 48. Qf3 {[%clk 0:00:42]}  Qh8 {[%clk 0:00:10]} 49. Qg3 {[%clk 0:00:36]}  Rh5 {[%clk 0:00:11]} 50. Nf3 {[%clk 0:00:34]}  Qh6 {[%clk 0:00:11]} 51. Rxh5 {[%clk 0:00:28]}  Qxh5+ {[%clk 0:00:11]} 52. Rh2 {[%clk 0:00:29]}  Qg4 {[%clk 0:00:11]} 53. Qxg4 {[%clk 0:00:29]}  fxg4 {[%clk 0:00:12]} 54. Ng5 {[%clk 0:00:30]}  Bxg5 {[%clk 0:00:09]} 55. fxg5 {[%clk 0:00:30]}  Ne7 {[%clk 0:00:06]} 56. Re2 {[%clk 0:00:27]}  Kf8 {[%clk 0:00:07]} 57. Rh2 {[%clk 0:00:18]}  Ng8 {[%clk 0:00:06]} 58. Rh7 {[%clk 0:00:17]}  Ne7 {[%clk 0:00:06]} 59. Rf7+ {[%clk 0:00:16]}  Ke8 {[%clk 0:00:06]} 60. Kg2 {[%clk 0:00:16]}  a5 {[%clk 0:00:05]} 61. Kg3 {[%clk 0:00:16]}  b5 {[%clk 0:00:06]} 62. Kxg4 {[%clk 0:00:17]}  a4 {[%clk 0:00:07]} 63. Kf4 {[%clk 0:00:16]}  b4 {[%clk 0:00:07]} 64. Ke5 {[%clk 0:00:17]}  a3 {[%clk 0:00:08]} 65. bxa3 {[%clk 0:00:18]}  bxa3 {[%clk 0:00:09]} 66. Rf1 {[%clk 0:00:17]}  Nc6+ {[%clk 0:00:08]} 67. Kd6 {[%clk 0:00:17]}  Nb4 {[%clk 0:00:08]} 68. Rh1 {[%clk 0:00:17]} 1-0


[Site "https://www.chess.com"]

[Event "Titled Tuesday Blitz August 09 Late 2022"]
[White "Chigaev, Maksim"]
[Black "Csonka, Balazs"]
[WhiteFideId "4108116"]
[BlackFideId "742910"]
[WhiteElo "2487"]
[BlackElo "2404"]
[Result "1-0"]
[Round "06"]
[TimeControl "180+1"]
[Date "2022.08.09"]
[WhiteClock "0:00:17"]
[BlackClock "0:00:02"]

1. e4 {[%clk 0:03:00]}  c5 {[%clk 0:02:57]} 2. Nf3 {[%clk 0:02:59]}  e6 {[%clk 0:02:57]} 3. b3 {[%clk 0:02:58]}  a6 {[%clk 0:02:55]} 4. Bb2 {[%clk 0:02:57]}  b5 {[%clk 0:02:55]} 5. d4 {[%clk 0:02:56]}  cxd4 {[%clk 0:02:53]} 6. Nxd4 {[%clk 0:02:57]}  Bb7 {[%clk 0:02:53]} 7. Bd3 {[%clk 0:02:57]}  Nf6 {[%clk 0:02:37]} 8. Qe2 {[%clk 0:02:57]}  Nc6 {[%clk 0:02:32]} 9. Nxc6 {[%clk 0:02:53]}  Bxc6 {[%clk 0:02:33]} 10. Nd2 {[%clk 0:02:53]}  Be7 {[%clk 0:02:18]} 11. O-O-O {[%clk 0:02:41]}  Qb6 {[%clk 0:02:02]} 12. g4 {[%clk 0:02:37]}  O-O {[%clk 0:01:50]} 13. g5 {[%clk 0:02:36]}  Ne8 {[%clk 0:01:51]} 14. h4 {[%clk 0:02:36]}  a5 {[%clk 0:01:51]} 15. a3 {[%clk 0:02:24]}  Nc7 {[%clk 0:01:17]} 16. f4 {[%clk 0:02:18]}  a4 {[%clk 0:00:55]} 17. b4 {[%clk 0:02:17]}  Na6 {[%clk 0:00:56]} 18. c3 {[%clk 0:01:42]}  Rac8 {[%clk 0:00:41]} 19. Kb1 {[%clk 0:01:42]}  d5 {[%clk 0:00:36]} 20. Rhe1 {[%clk 0:01:38]}  d4 {[%clk 0:00:30]} 21. cxd4 {[%clk 0:01:07]}  Nxb4 {[%clk 0:00:30]} 22. axb4 {[%clk 0:01:07]}  Bxb4 {[%clk 0:00:31]} 23. Ka2 {[%clk 0:01:08]}  a3 {[%clk 0:00:29]} 24. Ba1 {[%clk 0:01:08]}  Bxd2 {[%clk 0:00:17]} 25. Qxd2 {[%clk 0:00:55]}  b4 {[%clk 0:00:18]} 26. Rb1 {[%clk 0:00:55]}  Ba4 {[%clk 0:00:11]} 27. Qxb4 {[%clk 0:00:31]}  Qa7 {[%clk 0:00:04]} 28. Rec1 {[%clk 0:00:32]}  Rb8 {[%clk 0:00:04]} 29. Qc5 {[%clk 0:00:31]}  Qa8 {[%clk 0:00:03]} 30. d5 {[%clk 0:00:26]}  Rfc8 {[%clk 0:00:01]} 31. Qd4 {[%clk 0:00:25]}  f6 {[%clk 0:00:01]} 32. Rxc8+ {[%clk 0:00:17]}  Rxc8 {[%clk 0:00:01]} 33. gxf6 {[%clk 0:00:18]}  Bc2 {[%clk 0:00:01]} 34. f7+ {[%clk 0:00:18]}  Kxf7 {[%clk 0:00:02]} 35. Qxg7+ {[%clk 0:00:17]} 1-0


[Site "https://www.chess.com"]